[Event "Vienna Championship-C 2022"]
[Site "Vienna"]
[Date "2022.09.24"]
[Round "8.10"]
[White "Schreib, Christian"]
[Black "Ganahl, Herbert"]
[Result "1/2-1/2"]
[ECO "B51"]
[WhiteElo "1589"]
[BlackElo "1488"]
[Annotator "NA RC COMBH"]
[PlyCount "72"]
[EventDate "2022.09.17"]
[EventType "swiss"]
[EventCountry "AUT"]
[SourceTitle "playchess.com"]
[Source "ChessBase"]
[SourceQuality "1"]
[TimeControl "5400+30"]

1. e4 {[%emt 0:00:09]} c5 {[%emt 0:00:21]} 2. Nf3 {[%emt 0:00:09]} d6 {[%emt 0:00:52]} 3. Bb5+ {[%emt 0:00:17]} Nc6 {[%emt 0:00:56]} 4. O-O {[%emt 0:00:20]} e5 {[%emt 0:00:49]} 5. c3 {[%emt 0:01:04]} Nf6 {[%emt 0:02:38]} 6. Re1 {[%emt 0:01:11]} a6 {[%emt 0:01:10]} 7. Bxc6+ {[%emt 0:00:26]} bxc6 {[%emt 0:00:08]} 8. d4 {[%emt 0:00:19]} cxd4 {[%emt 0:04:47]} 9. cxd4 {[%emt 0:00:14]} exd4 {[%emt 0:05:46]} 10. e5 {[%emt 0:02:41]} dxe5 {[%emt 0:02:47]} 11. Nxe5 {[%emt 0:01:08]} Be6 {[%emt 0:01:45]} 12. Nxc6 {[%emt 0:00:47]} Qd5 {[%emt 0:00:49]} 13. Nxd4 {[%emt 0:00:51]} Rd8 {[%emt 0:02:55]} 14. Nxe6 {[%emt 0:07:25]} fxe6 {[%emt 0:04:23]} 15. Qxd5 {[%emt 0:00:46]} Rxd5 {[%emt 0:00:18]} 16. Rxe6+ {[%emt 0:00:26]} Kf7 {[%emt 0:00:13]} 17. Re1 {[%emt 0:00:09]} Bc5 {[%emt 0:00:53]} 18. Nc3 {[%emt 0:00:44]} Rd7 {[%emt 0:00:15]} 19. Be3 {[%emt 0:01:07]} Bb4 {[%emt 0:06:37]} 20. Red1 {[%emt 0:00:25]} Rc7 {[%emt 0:04:04]} 21. Nd5 {[%emt 0:01:23]} Nxd5 {[%emt 0:00:49]} 22. Rxd5 {[%emt 0:00:09]} Re8 {[%emt 0:01:41]} 23. a3 {[%emt 0:01:53]} Bf8 {[%emt 0:01:11]} 24. b4 {[%emt 0:02:46]} Rec8 {[%emt 0:00:47]} 25. Rad1 {[%emt 0:00:42]} Ke6 {[%emt 0:01:50]} 26. g3 {[%emt 0:05:24]} Rc3 {[%emt 0:02:17]} 27. R1d3 {[%emt 0:02:03]} Rxa3 {[%emt 0:01:54]} 28. Rxa3 {[%emt 0:01:04]} Kxd5 {[%emt 0:51:35]} 29. Rxa6 {[%emt 0:02:21]} Bxb4 {[%emt 0:00:00]} 30. Ra7 {[%emt 0:03:04]} Bc3 {[%emt 0:00:00]} 31. Kg2 {[%emt 0:01:17]} Ke6 {[%emt 0:00:00]} 32. h4 {[%emt 0:00:40]} h6 {[%emt 0:00:00]} 33. Rb7 {[%emt 0:01:49]} Be5 {[%emt 0:00:00]} 34. Kf3 {[%emt 0:02:12]} Rc4 {[%emt 0:00:00]} 35. Kg2 {[%emt 0:04:39]} Bf6 {[%emt 0:00:00]} 36. Kf3 {[%emt 0:00:43]} Be7 {[%emt 0:00:00]} 1/2-1/2

[Event "Vienna Championship-C 2022"]
[Site "Vienna"]
[Date "2022.09.24"]
[Round "8.11"]
[White "Aichinger, Johannes"]
[Black "Pavlov, Julian"]
[Result "1-0"]
[ECO "C51"]
[WhiteElo "1169"]
[BlackElo "1306"]
[Annotator "NA RC COMBH"]
[PlyCount "97"]
[EventDate "2022.09.17"]
[EventType "swiss"]
[EventCountry "AUT"]
[SourceTitle "playchess.com"]
[Source "ChessBase"]
[SourceQuality "1"]
[TimeControl "5400+30"]

1. e4 {[%emt 0:00:00]} e5 {[%emt 0:00:07]} 2. Nf3 {[%emt 0:00:04]} Nc6 {[%emt 0:00:06]} 3. Bc4 {[%emt 0:00:04]} Bc5 {[%emt 0:00:41]} 4. b4 {[%emt 0:00:04]} Bxb4 {[%emt 0:00:12]} 5. c3 {[%emt 0:00:06]} Be7 {[%emt 0:00:37]} 6. Qb3 {[%emt 0:00:24]} Na5 {[%emt 0:00:59]} 7. Bxf7+ {[%emt 0:00:15]} Kf8 {[%emt 0:00:28]} 8. Qa4 {[%emt 1:33:33]} c6 {[%emt 1:31:20]} 9. Bxg8 {[%emt 0:00:00]} Rxg8 {[%emt 0:00:00]} 10. Nxe5 {[%emt 0:00:00]} b5 {[%emt 0:00:00]} 11. Qd1 {[%emt 0:00:00]} d6 {[%emt 0:00:00]} 12. Qf3+ {[%emt 0:00:00]} Bf6 {[%emt 0:00:00]} 13. Ng4 {[%emt 0:00:00]} h5 {[%emt 0:00:00]} 14. Nxf6 {[%emt 0:00:00]} gxf6 {[%emt 0:00:00]} 15. Qxh5 {[%emt 0:00:00]} Qe7 {[%emt 0:00:00]} 16. d3 {[%emt 0:00:00]} Bg4 {[%emt 0:00:00]} 17. Bh6+ {[%emt 0:00:00]} Rg7 {[%emt 0:00:00]} 18. Qxg4 {[%emt 0:00:00]} Kg8 {[%emt 0:00:00]} 19. Bxg7 {[%emt 0:00:00]} Qxg7 {[%emt 0:00:00]} 20. Qxg7+ {[%emt 0:00:00]} Kxg7 {[%emt 0:00:00]} 21. Nd2 {[%emt 0:00:00]} Nb7 {[%emt 0:00:00]} 22. O-O {[%emt 0:00:00]} Re8 {[%emt 0:00:00]} 23. f4 {[%emt 0:00:00]} Nc5 {[%emt 0:00:00]} 24. d4 {[%emt 0:00:00]} Na4 {[%emt 0:00:00]} 25. c4 {[%emt 0:00:00]} bxc4 {[%emt 0:00:00]} 26. Nxc4 {[%emt 0:00:00]} d5 {[%emt 0:00:00]} 27. exd5 {[%emt 0:00:00]} cxd5 {[%emt 0:00:00]} 28. Nd6 {[%emt 0:00:00]} Re6 {[%emt 0:00:00]} 29. Nf5+ {[%emt 0:00:00]} Kg6 {[%emt 0:00:00]} 30. Ng3 {[%emt 0:00:00]} Nc3 {[%emt 0:00:00]} 31. f5+ {[%emt 0:00:00]} Kf7 {[%emt 0:00:00]} 32. fxe6+ {[%emt 0:00:00]} Kxe6 {[%emt 0:00:00]} 33. Rfc1 {[%emt 0:00:00]} Nb5 {[%emt 0:00:00]} 34. Re1+ {[%emt 0:00:00]} Kf7 {[%emt 0:00:00]} 35. Nf5 {[%emt 0:00:00]} Kg6 {[%emt 0:00:00]} 36. Rab1 {[%emt 0:00:00]} Nc3 {[%emt 0:00:00]} 37. Rb3 {[%emt 0:00:00]} Ne4 {[%emt 0:00:00]} 38. Rxe4 {[%emt 0:00:00]} dxe4 {[%emt 0:00:00]} 39. Ng3 {[%emt 0:00:00]} f5 {[%emt 0:00:00]} 40. Rb5 {[%emt 0:00:00]} e3 {[%emt 0:00:00]} 41. Rxf5 {[%emt 0:00:00]} e2 {[%emt 0:00:00]} 42. Re5 {[%emt 0:00:00]} e1=Q+ {[%emt 0:00:00]} 43. Rxe1 {[%emt 0:00:00]} a5 {[%emt 0:00:00]} 44. d5 {[%emt 0:00:00]} a4 {[%emt 0:00:00]} 45. d6 {[%emt 0:00:00]} a3 {[%emt 0:00:00]} 46. d7 {[%emt 0:00:00]} Kf7 {[%emt 0:00:00]} 47. d8=Q {[%emt 0:00:00]} Kg6 {[%emt 0:00:00]} 48. Qe7 {[%emt 0:00:00]} Kh6 {[%emt 0:20:00]} 49. Re6# {[%emt 0:00:00]} 1-0

[Event "Vienna Championship-C 2022"]
[Site "Vienna"]
[Date "2022.09.24"]
[Round "8.12"]
[White "Mair, Josef"]
[Black "Gockner, Hans"]
[Result "0-1"]
[ECO "B50"]
[WhiteElo "1620"]
[BlackElo "1592"]
[Annotator "NA RC COMBH"]
[PlyCount "50"]
[EventDate "2022.09.17"]
[EventType "swiss"]
[EventCountry "AUT"]
[SourceTitle "playchess.com"]
[Source "ChessBase"]
[SourceQuality "1"]
[TimeControl "5400+30"]

1. e4 {[%emt 0:12:18]} c5 {[%emt 0:00:24]} 2. Nf3 {[%emt 0:00:18]} Nc6 {[%emt 0:00:44]} 3. Bc4 {[%emt 0:00:09]} d6 {[%emt 0:01:50]} 4. O-O {[%emt 0:00:28]} Bg4 {[%emt 0:01:51]} 5. h3 {[%emt 0:07:25]} Bh5 {[%emt 0:01:13]} 6. g4 {[%emt 0:01:01]} Bg6 {[%emt 0:00:59]} 7. Nc3 {[%emt 0:00:38]} Nf6 {[%emt 0:05:32]} 8. Re1 {[%emt 0:05:10]} e5 {[%emt 0:01:22]} 9. d3 {[%emt 0:11:17]} Qd7 {[%emt 0:02:28]} 10. Nd5 {[%emt 0:00:54]} O-O-O {[%emt 0:02:20]} 11. a3 {[%emt 0:11:32]} Nxg4 {[%emt 0:00:48]} 12. hxg4 {[%emt 0:00:32]} Qxg4+ {[%emt 0:00:11]} 13. Kf1 {[%emt 0:01:16]} Qh3+ {[%emt 0:00:41]} 14. Ke2 {[%emt 0:00:56]} Bh5 {[%emt 0:05:52]} 15. Ke3 {[%emt 0:06:13]} Nd4 {[%emt 0:03:32]} 16. Rh1 {[%emt 0:02:20]} Qg4 {[%emt 0:06:50]} 17. Rg1 {[%emt 0:05:29]} Qd7 {[%emt 0:09:26]} 18. Rg3 {[%emt 0:03:27]} g6 {[%emt 0:01:03]} 19. c3 {[%emt 0:00:29]} Bh6+ {[%emt 0:00:27]} 20. Ng5 {[%emt 0:10:19]} Bxd1 {[%emt 0:01:33]} 21. cxd4 {[%emt 0:00:16]} Bxg5+ {[%emt 0:01:14]} 22. Rxg5 {[%emt 0:00:02]} Qh3+ {[%emt 0:04:12]} 23. Kd2 {[%emt 0:04:27]} Qf1 {[%emt 0:01:41]} 24. dxe5 {[%emt 0:01:24]} Qe2+ {[%emt 0:00:34]} 25. Kc3 {[%emt 0:00:24]} Qc2# {[%emt 0:00:55]} 0-1

[Event "Vienna Championship-C 2022"]
[Site "Vienna"]
[Date "2022.09.25"]
[Round "9.2"]
[White "Meixner, Peter"]
[Black "Lappe, Manfred"]
[Result "1/2-1/2"]
[ECO "D58"]
[WhiteElo "1669"]
[BlackElo "1692"]
[Annotator "NA RC COMBH"]
[PlyCount "81"]
[EventDate "2022.09.17"]
[EventType "swiss"]
[EventCountry "AUT"]
[SourceTitle "playchess.com"]
[Source "ChessBase"]
[SourceQuality "1"]
[TimeControl "5400+30"]

1. d4 {[%emt 0:00:02]} d5 {[%emt 0:00:27]} 2. c4 {[%emt 0:00:44]} e6 {[%emt 0:00:31]} 3. Nc3 {[%emt 0:00:40]} Nf6 {[%emt 0:00:25]} 4. Bg5 {[%emt 0:00:23]} Be7 {[%emt 0:00:19]} 5. e3 {[%emt 0:00:09]} b6 {[%emt 0:02:03]} 6. Nf3 {[%emt 0:01:34]} Bb7 {[%emt 0:00:22]} 7. Rc1 {[%emt 0:00:53]} Nbd7 {[%emt 0:00:52]} 8. Bd3 {[%emt 0:00:59]} h6 {[%emt 0:00:52]} 9. Bh4 {[%emt 0:00:31]} c5 {[%emt 0:01:48]} 10. O-O {[%emt 0:04:38]} O-O {[%emt 0:01:37]} 11. cxd5 {[%emt 0:04:31]} Nxd5 {[%emt 0:00:33]} 12. Bxe7 {[%emt 0:00:21]} Qxe7 {[%emt 0:00:37]} 13. Nxd5 {[%emt 0:03:11]} Bxd5 {[%emt 0:00:36]} 14. Bb1 {[%emt 0:01:06]} Rac8 {[%emt 0:01:32]} 15. e4 {[%emt 0:09:54]} Bb7 {[%emt 0:00:27]} 16. Re1 {[%emt 0:03:33]} cxd4 {[%emt 0:03:47]} 17. Qxd4 {[%emt 0:01:25]} e5 {[%emt 0:00:48]} 18. Qe3 {[%emt 0:02:09]} Nc5 {[%emt 0:06:46]} 19. b4 {[%emt 0:05:24]} Nd7 {[%emt 0:05:51]} 20. a3 {[%emt 0:04:22]} Qe6 {[%emt 0:00:49]} 21. Qe2 {[%emt 0:04:29]} Nf6 {[%emt 0:02:56]} 22. Ba2 {[%emt 0:06:33]} Qe7 {[%emt 0:02:20]} 23. Nd2 {[%emt 0:03:06]} Qd7 {[%emt 0:03:43]} 24. Bb1 {[%emt 0:08:09]} Rc7 {[%emt 0:02:26]} 25. Rxc7 {[%emt 0:05:28]} Qxc7 {[%emt 0:00:17]} 26. Qc4 {[%emt 0:01:39]} Rc8 {[%emt 0:07:24]} 27. Ba2 {[%emt 0:02:07]} Qxc4 {[%emt 0:05:07]} 28. Bxc4 {[%emt 0:05:27]} Nxe4 {[%emt 0:03:44]} 29. Nxe4 {[%emt 0:00:29]} Rxc4 {[%emt 0:46:01]} 30. Nd6 {[%emt 0:00:22]} Rc7 {[%emt 0:00:00]} 31. Nxb7 {[%emt 0:00:11]} Rxb7 {[%emt 0:00:00]} 32. Rxe5 {[%emt 0:00:07]} Kf8 {[%emt 0:00:00]} 33. Kf1 {[%emt 0:01:12]} Rc7 {[%emt 0:00:00]} 34. Ke2 {[%emt 0:03:36]} Rc2+ {[%emt 0:00:00]} 35. Kf3 {[%emt 0:00:18]} f6 {[%emt 0:00:00]} 36. Re3 {[%emt 0:00:30]} Kf7 {[%emt 0:00:00]} 37. g4 {[%emt 0:00:10]} g5 {[%emt 0:00:00]} 38. Rd3 {[%emt 0:00:07]} Ke7 {[%emt 0:00:00]} 39. b5 {[%emt 0:01:43]} Rc5 {[%emt 0:00:00]} 40. Rb3 {[%emt 0:00:14]} Rc4 {[%emt 0:00:00]} 41. h3 {[%emt 0:00:51]} 1/2-1/2

[Event "Vienna Championship-C 2022"]
[Site "Vienna"]
[Date "2022.09.25"]
[Round "9.3"]
[White "Gerold, Arnold"]
[Black "Bendl, Felix"]
[Result "1/2-1/2"]
[ECO "B14"]
[WhiteElo "1708"]
[BlackElo "1645"]
[Annotator "NA RC COMBH"]
[PlyCount "58"]
[EventDate "2022.09.17"]
[EventType "swiss"]
[EventCountry "AUT"]
[SourceTitle "playchess.com"]
[Source "ChessBase"]
[SourceQuality "1"]
[TimeControl "5400+30"]

1. e4 {[%emt 1:31:00]} c6 {[%emt 1:31:00]} 2. d4 {[%emt 0:00:30]} d5 {[%emt 0:00:30]} 3. exd5 {[%emt 0:00:30]} cxd5 {[%emt 0:00:30]} 4. c4 {[%emt 0:00:30]} dxc4 {[%emt 0:00:30]} 5. Bxc4 {[%emt 0:00:30]} Nf6 {[%emt 0:00:30]} 6. Nc3 {[%emt 0:00:30]} e6 {[%emt 0:00:30]} 7. Nf3 {[%emt 0:00:30]} Nc6 {[%emt 0:00:30]} 8. O-O {[%emt 0:00:30]} Bb4 {[%emt 0:00:30]} 9. Bg5 {[%emt 0:00:30]} O-O {[%emt 0:00:30]} 10. Bd3 {[%emt 0:00:30]} h6 {[%emt 0:00:30]} 11. Bh4 {[%emt 0:00:30]} Be7 {[%emt 0:00:30]} 12. Bg3 {[%emt 0:00:30]} Qb6 {[%emt 0:00:30]} 13. Na4 {[%emt 0:00:30]} Qd8 {[%emt 0:00:30]} 14. Rc1 {[%emt 0:00:30]} Nh5 {[%emt 0:00:30]} 15. Ne5 {[%emt 0:00:30]} Nxe5 {[%emt 0:00:30]} 16. Bxe5 {[%emt 0:00:30]} Nf6 {[%emt 0:00:30]} 17. Nc3 {[%emt 0:00:30]} Bd7 {[%emt 0:00:30]} 18. Bb1 {[%emt 0:00:30]} Bc6 {[%emt 0:00:30]} 19. Qd3 {[%emt 0:00:30]} g6 {[%emt 0:00:30]} 20. Qh3 {[%emt 0:00:30]} h5 {[%emt 0:00:30]} 21. f4 {[%emt 0:00:30]} Bd6 {[%emt 0:00:30]} 22. Rcd1 {[%emt 0:00:30]} Bxe5 {[%emt 0:00:30]} 23. fxe5 {[%emt 0:00:30]} Ng4 {[%emt 0:00:30]} 24. Be4 {[%emt 0:00:30]} Bxe4 {[%emt 0:00:30]} 25. Nxe4 {[%emt 0:00:30]} Qd5 {[%emt 0:00:30]} 26. Qxg4 {[%emt 0:00:30]} hxg4 {[%emt 0:00:30]} 27. Nf6+ {[%emt 0:00:30]} Kg7 {[%emt 0:00:30]} 28. Nxd5 {[%emt 0:00:30]} exd5 {[%emt 0:00:30]} 29. Rc1 {[%emt 0:00:30]} Rac8 {[%emt 0:00:30]} 1/2-1/2

[Event "Vienna Championship-C 2022"]
[Site "Vienna"]
[Date "2022.09.25"]
[Round "9.4"]
[White "Nicolussi, Hieronymus"]
[Black "Brunner, Felix"]
[Result "0-1"]
[ECO "A45"]
[WhiteElo "1239"]
[BlackElo "1541"]
[Annotator "NA RC COMBH"]
[PlyCount "44"]
[EventDate "2022.09.17"]
[EventType "swiss"]
[EventCountry "AUT"]
[SourceTitle "playchess.com"]
[Source "ChessBase"]
[SourceQuality "1"]
[TimeControl "5400+30"]

1. d4 {[%emt 0:00:02]} Nf6 {[%emt 0:00:04]} 2. e3 {[%emt 0:00:07]} g6 {[%emt 0:00:05]} 3. Bd3 {[%emt 0:00:06]} Bg7 {[%emt 0:00:04]} 4. f4 {[%emt 0:00:06]} c5 {[%emt 0:00:13]} 5. c3 {[%emt 0:00:10]} O-O {[%emt 0:00:11]} 6. Nf3 {[%emt 0:00:15]} Nc6 {[%emt 0:00:15]} 7. Nbd2 {[%emt 0:00:25]} cxd4 {[%emt 0:00:29]} 8. exd4 {[%emt 0:00:18]} d6 {[%emt 0:00:07]} 9. O-O {[%emt 0:00:10]} e5 {[%emt 0:04:41]} 10. fxe5 {[%emt 0:03:03]} dxe5 {[%emt 0:00:06]} 11. Nxe5 {[%emt 0:00:06]} Nxe5 {[%emt 0:00:43]} 12. dxe5 {[%emt 0:00:08]} Ng4 {[%emt 0:00:30]} 13. Nf3 {[%emt 0:13:58]} Qb6+ {[%emt 0:03:04]} 14. Nd4 {[%emt 0:00:10]} Bxe5 {[%emt 0:00:15]} 15. h3 {[%emt 0:00:51]} Bxd4+ {[%emt 0:00:57]} 16. cxd4 {[%emt 0:01:12]} Qxd4+ {[%emt 1:26:46]} 17. Kh1 {[%emt 0:01:32]} Nf2+ {[%emt 0:00:00]} 18. Rxf2 {[%emt 0:00:18]} Qxf2 {[%emt 0:00:00]} 19. Bd2 {[%emt 0:02:56]} Rd8 {[%emt 0:00:00]} 20. Qc2 {[%emt 0:00:07]} Bf5 {[%emt 0:00:00]} 21. Bxf5 {[%emt 0:05:07]} Rxd2 {[%emt 0:00:00]} 22. Qc7 {[%emt 0:02:24]} Qxg2# {[%emt 0:00:00]} 0-1

[Event "Vienna Championship-C 2022"]
[Site "Vienna"]
[Date "2022.09.25"]
[Round "9.6"]
[White "Unger, Alexander"]
[Black "Johnson, Roland E S"]
[Result "1/2-1/2"]
[ECO "C47"]
[WhiteElo "1456"]
[BlackElo "1691"]
[Annotator "NA RC COMBH"]
[PlyCount "90"]
[EventDate "2022.09.17"]
[EventType "swiss"]
[EventCountry "AUT"]
[SourceTitle "playchess.com"]
[Source "ChessBase"]
[SourceQuality "1"]
[TimeControl "5400+30"]

1. e4 {[%emt 0:00:02]} e5 {[%emt 0:00:05]} 2. Nf3 {[%emt 0:00:10]} Nf6 {[%emt 0:00:07]} 3. Nc3 {[%emt 0:00:08]} Nc6 {[%emt 0:00:06]} 4. d4 {[%emt 0:00:06]} exd4 {[%emt 0:00:07]} 5. Nxd4 {[%emt 0:00:06]} Bb4 {[%emt 0:00:34]} 6. Nxc6 {[%emt 0:00:32]} dxc6 {[%emt 0:00:11]} 7. Qxd8+ {[%emt 0:00:46]} Kxd8 {[%emt 0:00:06]} 8. Bd3 {[%emt 0:04:44]} Re8 {[%emt 0:00:46]} 9. f3 {[%emt 0:02:20]} Nd5 {[%emt 0:00:30]} 10. Bd2 {[%emt 0:01:44]} Nxc3 {[%emt 1:32:58]} 11. Bxc3 {[%emt 0:00:52]} Bxc3+ {[%emt 0:00:00]} 12. bxc3 {[%emt 0:00:06]} f5 {[%emt 0:00:00]} 13. O-O-O {[%emt 0:00:48]} f4 {[%emt 0:00:00]} 14. Rhe1 {[%emt 0:02:39]} Ke7 {[%emt 0:00:00]} 15. g3 {[%emt 0:08:04]} fxg3 {[%emt 0:00:00]} 16. hxg3 {[%emt 0:00:10]} Be6 {[%emt 0:00:00]} 17. Kb2 {[%emt 0:00:59]} Rf8 {[%emt 0:00:00]} 18. f4 {[%emt 0:02:28]} Rf6 {[%emt 0:00:00]} 19. e5 {[%emt 0:01:25]} Rh6 {[%emt 0:00:00]} 20. Rh1 {[%emt 0:00:34]} Rxh1 {[%emt 0:00:00]} 21. Rxh1 {[%emt 0:00:06]} h6 {[%emt 0:00:00]} 22. f5 {[%emt 0:09:02]} Bd5 {[%emt 0:00:00]} 23. f6+ {[%emt 0:00:38]} Kf8 {[%emt 0:00:00]} 24. Rf1 {[%emt 0:07:52]} Re8 {[%emt 0:00:00]} 25. fxg7+ {[%emt 0:02:02]} Kxg7 {[%emt 0:00:00]} 26. Rf6 {[%emt 0:00:46]} Rxe5 {[%emt 0:00:00]} 27. Rg6+ {[%emt 0:00:06]} Kf7 {[%emt 0:00:00]} 28. Rxh6 {[%emt 0:00:15]} Rg5 {[%emt 0:00:00]} 29. c4 {[%emt 0:03:26]} Be6 {[%emt 0:00:00]} 30. Rh7+ {[%emt 0:01:39]} Rg7 {[%emt 0:00:00]} 31. Rxg7+ {[%emt 0:01:30]} Kxg7 {[%emt 0:00:00]} 32. Kc3 {[%emt 0:00:20]} Kf6 {[%emt 0:00:00]} 33. Kd4 {[%emt 0:00:09]} Kg5 {[%emt 0:00:00]} 34. Ke3 {[%emt 0:06:03]} Kg4 {[%emt 0:00:00]} 35. Kf2 {[%emt 0:00:23]} b5 {[%emt 0:00:00]} 36. cxb5 {[%emt 0:00:19]} cxb5 {[%emt 0:00:00]} 37. Bxb5 {[%emt 0:00:06]} Bxa2 {[%emt 0:00:00]} 38. Ba6 {[%emt 0:02:03]} Bb1 {[%emt 0:00:00]} 39. c4 {[%emt 0:02:38]} Kf5 {[%emt 0:00:00]} 40. Ke3 {[%emt 0:01:07]} Kg4 {[%emt 0:00:00]} 41. Kd4 {[%emt 0:02:14]} Kxg3 {[%emt 0:00:00]} 42. Kc5 {[%emt 0:00:18]} Kf4 {[%emt 0:00:00]} 43. Kc6 {[%emt 0:00:11]} Ke5 {[%emt 0:00:00]} 44. c5 {[%emt 0:00:41]} Kd4 {[%emt 0:00:00]} 45. Kxc7 {[%emt 0:00:44]} Kxc5 {[%emt 0:00:00]} 1/2-1/2

[Event "Vienna Championship-C 2022"]
[Site "Vienna"]
[Date "2022.09.25"]
[Round "9.8"]
[White "Ganahl, Herbert"]
[Black "Twyble, Michael S"]
[Result "0-1"]
[ECO "B02"]
[WhiteElo "1488"]
[BlackElo "2245"]
[Annotator "TA"]
[PlyCount "54"]
[EventDate "2022.09.17"]
[EventType "swiss"]
[EventCountry "AUT"]
[SourceTitle "playchess.com"]
[Source "ChessBase"]
[SourceQuality "1"]
[TimeControl "5400+30"]

{[%evp 10,54,31,45,19,-46,18,19,18,25,49,8,19,4,20,2,44,34,40,33,29,15,12,-326,-327,-481,-476,-466,-471,-650,-574,-574,-570,-567,-566,-574,-555,-574,-573,-573,-572,-581,-551,-710,-710,-5310,-5302]} 1. e4 {[%emt 0:00:04]} d5 {[%emt 0:00:06]} 2. exd5 {[%emt 0:00:02]} Nf6 {[%emt 0:00:07]} 3. Nc3 {[%emt 0:00:32]} Nxd5 {[%emt 0:00:06]} 4. Bc4 {[%emt 0:03:45]} Nb6 {[%emt 0:01:14]} 5. Bb3 {[%emt 0:00:55]} Nc6 {[%emt 0:00:11]} 6. Qf3 {[%emt 0:01:06]} e6 {[%emt 0:00:29] [#] B02: Alekhine's Defence: Chase Variation and lines with early Nc3.} 7. Qd1 $146 {[%emt 0:03:31]} (7. Nge2 $11) ({Predecessor:} 7. Nge2 Be7 8. d3 O-O 9. a3 Na5 10. Ba2 c5 11. Ne4 Nc6 12. O-O Kh8 13. Qh5 Nd5 14. c4 Nc7 15. Ng5 Bxg5 16. Bxg5 {1-0 (59) Wang,C (2490)-Bu,X (2668) Beijing 2012}) 7... Bc5 {[%emt 0:01:56]} ({Black should try} 7... a5 $15 8. a3 Nd4) 8. Nf3 $11 {[%emt 0:00:38]} O-O {[%emt 0:00:45] The position is equal.} 9. O-O {[%emt 0:00:36]} Bd7 {[%emt 0:06:12]} 10. d3 {[%emt 0:01:48]} Na5 {[%emt 1:24:24]} 11. Ne4 {[%emt 0:01:04]} Nxb3 {[%emt 0:00:00]} 12. axb3 {[%emt 0:00:08]} Qe7 {[%emt 0:00:00]} 13. Nxc5 {[%emt 0:03:47]} Qxc5 {[%emt 0:00:00]} 14. Re1 {[%emt 0:04:16]} Bc6 {[%emt 0:00:00]} 15. Be3 {[%emt 0:03:52]} Qh5 {[%emt 0:00:00]} 16. Ne5 $2 {[%emt 0:06:21][%mdl 8192] Now White is beyond hope.} Qxe5 $19 {[%emt 0:00:00]} 17. Bxb6 {[%emt 0:00:14]} (17. c4 {was worth a try.}) 17... Qd5 {[%emt 0:00:00][%csl Gc6][%cal Rd5g2] [#] Black is clearly winning.} 18. f3 {[%emt 0:02:24]} axb6 {[%emt 0:00:00]} 19. Ra3 {[%emt 0:00:21]} Rxa3 {[%emt 0:00:00]} 20. bxa3 {[%emt 0:00:04]} Qc5+ {[%emt 0:00:00]} 21. Kf1 {[%emt 0:00:41]} Qxa3 {[%emt 0:00:00]} 22. Qd2 {[%emt 0:00:31]} Qa5 {[%emt 0:00:00]} 23. Qf4 {[%emt 0:02:19]} Qc3 {[%emt 0:00:00]} 24. Re2 {[%emt 0:01:01]} Bd5 {[%emt 0:00:00]} 25. Qa4 {[%emt 0:01:39]} Qc6 {[%emt 0:00:00]} 26. Qa1 {[%emt 0:00:39] [#]} Bxf3 $1 {[%emt 0:00:00]} 27. gxf3 {[%emt 0:00:28]} (27. Rf2 Bh5) 27... Qxf3+ {[%emt 0:00:00] Weighted Error Value: White=0.85/Black=0.16 (very precise)} 0-1

[Event "Vienna Championship-C 2022"]
[Site "Vienna"]
[Date "2022.09.25"]
[Round "9.11"]
[White "Niesswohl, Werner"]
[Black "Aichinger, Johannes"]
[Result "1-0"]
[ECO "E30"]
[WhiteElo "1473"]
[BlackElo "1169"]
[Annotator "NA RC COMBH"]
[PlyCount "33"]
[EventDate "2022.09.17"]
[EventType "swiss"]
[EventCountry "AUT"]
[SourceTitle "playchess.com"]
[Source "ChessBase"]
[SourceQuality "1"]
[TimeControl "5400+30"]

1. d4 {[%emt 0:00:35]} Nf6 {[%emt 0:00:05]} 2. c4 {[%emt 0:00:23]} e6 {[%emt 0:00:05]} 3. Nc3 {[%emt 0:00:27]} d5 {[%emt 0:00:08]} 4. Bg5 {[%emt 0:00:38]} Bb4 {[%emt 0:00:26]} 5. e3 {[%emt 0:00:35]} h6 {[%emt 0:00:43]} 6. Bh4 {[%emt 0:00:35]} c5 {[%emt 0:00:16]} 7. cxd5 {[%emt 0:01:58]} g5 {[%emt 0:00:18]} 8. Bg3 {[%emt 0:01:45]} Qa5 {[%emt 0:00:13]} 9. Nge2 {[%emt 0:02:09]} Nxd5 {[%emt 0:00:38]} 10. Qc2 {[%emt 1:26:25]} Bd7 {[%emt 1:32:38]} 11. dxc5 {[%emt 0:00:00]} Qxc5 {[%emt 0:00:00]} 12. a3 {[%emt 0:00:00]} Qa5 {[%emt 0:00:00]} 13. O-O-O {[%emt 0:00:00]} Bxc3 {[%emt 0:00:00]} 14. Nxc3 {[%emt 0:00:00]} Na6 {[%emt 0:00:00]} 15. Be5 {[%emt 0:00:00]} f6 {[%emt 0:00:00]} 16. Nxd5 {[%emt 0:00:00]} fxe5 {[%emt 0:00:00]} 17. Qg6+ {[%emt 0:00:00]} 1-0